bitfinex-derivatives/quotes_BTCF0:USTF0_20240923
["timestamp","ask_amount","ask_price","bid_price","bid_amount"]
[1727078322533,0.078632,63590.0,63589.0,0.04701697]
[1727078322735,0.078634,63589.0,63587.0,0.04714575]
[1727078322932,0.08,63588.0,63587.0,0.04714575]
[1727078323137,0.23728108,63588.0,63586.0,0.078637]
[1727078323931,0.23728108,63588.0,63587.0,0.078636]
[1727078324137,0.24028108,63588.0,63587.0,0.078636]
[1727078325136,0.23928108,63588.0,63587.0,0.12578061]
[1727078325334,0.60308108,63588.0,63587.0,0.12578061]
[1727078326034,0.60008108,63588.0,63587.0,0.12578061]
[1727078326233,0.24328108,63588.0,63587.0,0.12578061]
[1727078326434,0.52544608,63588.0,63587.0,0.12578061]
[1727078326945,0.53044608,63588.0,63587.0,0.078636]
[1727078327131,0.4518,63588.0,63587.0,0.078636]
[1727078327332,0.4488,63588.0,63587.0,0.078636]
[1727078327627,0.3758,63588.0,63587.0,0.079636]
[1727078328834,0.015,63588.0,63587.0,0.079636]
[1727078329338,0.015,63588.0,63587.0,0.14241441]
[1727078329735,0.015,63588.0,63587.0,0.079636]
[1727078337837,0.015,63588.0,63587.0,0.14241756]
[1727078341241,0.015,63588.0,63587.0,0.079636]
[1727078343046,0.015,63588.0,63587.0,0.14241408]
[1727078350260,0.015,63588.0,63587.0,0.079636]
[1727078351856,0.3758,63588.0,63587.0,0.079636]
[1727078352745,0.3758,63588.0,63587.0,0.12674534]
[1727078353652,0.3758,63588.0,63587.0,0.079636]
[1727078357250,0.09364608,63588.0,63587.0,0.079636]
[1727078357449,0.45444608,63588.0,63587.0,0.079636]
[1727078358450,0.09364608,63588.0,63587.0,0.079636]
[1727078358654,0.45444608,63588.0,63587.0,0.079636]
[1727078359155,0.3758,63588.0,63587.0,0.079636]
[1727078361257,0.015,63588.0,63587.0,0.079636]
[1727078361559,0.3758,63588.0,63587.0,0.079636]
[1727078361751,0.3758,63588.0,63587.0,0.12672818]
[1727078363158,0.3758,63588.0,63587.0,0.079636]
[1727078363362,0.015,63588.0,63587.0,0.079636]
[1727078363559,0.3758,63588.0,63587.0,0.079636]
[1727078366163,0.015,63588.0,63587.0,0.079636]
[1727078366366,0.3758,63588.0,63587.0,0.079636]
[1727078369466,0.015,63588.0,63587.0,0.079636]
[1727078369669,0.3758,63588.0,63587.0,0.079636]
[1727078371361,0.015,63588.0,63587.0,0.079636]
[1727078371563,0.3758,63588.0,63587.0,0.079636]
[1727078372374,0.015,63588.0,63587.0,0.079636]
[1727078372667,0.3758,63588.0,63587.0,0.079636]
[1727078372869,0.015,63588.0,63587.0,0.079636]
[1727078373069,0.3758,63588.0,63587.0,0.079636]
[1727078373370,0.45444608,63588.0,63587.0,0.079636]
[1727078377764,0.09364608,63588.0,63587.0,0.079636]
[1727078377969,0.45444608,63588.0,63587.0,0.079636]
[1727078378879,0.09364608,63588.0,63587.0,0.079636]
[1727078379174,0.45444608,63588.0,63587.0,0.079636]
[1727078379569,0.09364608,63588.0,63587.0,0.079636]
[1727078379769,0.45444608,63588.0,63587.0,0.079636]
[1727078380274,0.45444608,63588.0,63587.0,0.14241408]
[1727078380773,0.09364608,63588.0,63587.0,0.14241408]
[1727078380971,0.45444608,63588.0,63587.0,0.14241408]
[1727078381371,0.53308108,63588.0,63587.0,0.14241408]
[1727078381570,0.454435,63588.0,63587.0,0.079636]
[1727078381962,0.47993174,63588.0,63587.0,0.079636]
[1727078383369,0.47993174,63588.0,63587.0,0.12679296]
[1727078384775,0.47993174,63588.0,63587.0,0.079636]
[1727078385370,0.11913174,63588.0,63587.0,0.079636]
[1727078385582,0.47993174,63588.0,63587.0,0.079636]
[1727078385764,0.47993182,63588.0,63587.0,0.079636]
[1727078387165,0.11913182,63588.0,63587.0,0.079636]
[1727078387370,0.47993182,63588.0,63587.0,0.079636]
[1727078389787,0.11913182,63588.0,63587.0,0.079636]
[1727078390086,0.47993182,63588.0,63587.0,0.079636]
[1727078390271,0.40129682,63588.0,63587.0,0.079636]
[1727078390781,0.45446876,63588.0,63587.0,0.14241408]
[1727078393477,0.3758,63588.0,63587.0,0.079636]
[1727078394183,0.015,63588.0,63587.0,0.079636]
[1727078404387,0.015,63588.0,63587.0,0.06371363]
[1727078404688,0.11913364,63588.0,63587.0,0.001]
[1727078406685,0.093635,63588.0,63587.0,0.001]
[1727078407189,0.093635,63588.0,63587.0,0.079636]
[1727078407588,0.015,63588.0,63587.0,0.079636]
[1727078407798,0.07860797,63599.0,63587.0,1.16516834]
[1727078408085,0.3608,63600.0,63595.0,0.06261165]
[1727078408383,0.3608,63600.0,63593.0,0.3608]
[1727078408384,0.3608,63600.0,63599.0,0.04693503]
[1727078408574,0.3608,63600.0,63599.0,0.078621]
[1727078408778,0.7216,63600.0,63596.0,0.04693503]
[1727078408979,0.07860797,63597.0,63591.0,0.04693503]
[1727078409188,0.3608,63592.0,63589.0,0.04695404]
[1727078409385,0.078633,63589.0,63587.0,0.002]
[1727078409784,0.078633,63589.0,63587.0,0.079636]
[1727078410678,0.085633,63589.0,63587.0,0.080636]
[1727078410988,0.078635,63588.0,63587.0,0.001]
[1727078411879,0.124635,63588.0,63587.0,0.002]
[1727078412078,0.20324297,63588.0,63587.0,0.002]
[1727078412279,0.20924297,63588.0,63587.0,0.002]
[1727078412684,0.20924297,63588.0,63587.0,0.001]
[1727078412885,0.21524297,63588.0,63587.0,0.002]
[1727078414190,0.136635,63588.0,63587.0,0.002]
[1727078414988,0.012,63588.0,63587.0,0.002]
[1727078415189,0.012,63588.0,63587.0,0.04895404]
[1727078415396,0.012,63588.0,63587.0,0.080636]
[1727078416192,0.012,63588.0,63587.0,0.14324765]
[1727078416495,0.012,63588.0,63587.0,0.14329417]
[1727078416692,0.012,63588.0,63587.0,0.552436]
[1727078416899,0.3608,63591.0,63587.0,1.152436]
[1727078417196,0.3608,63591.0,63590.0,0.06264617]
[1727078417395,0.3608,63591.0,63590.0,0.14127817]
[1727078418098,0.3678,63591.0,63590.0,0.14127817]
[1727078418590,0.3738,63591.0,63590.0,0.14127817]
[1727078418795,0.3738,63591.0,63590.0,0.078632]
[1727078418991,0.3758,63591.0,63590.0,0.079632]
[1727078419383,0.3688,63591.0,63590.0,0.079632]
[1727078419589,0.3788,63591.0,63590.0,0.080632]
[1727078421495,0.3788,63591.0,63590.0,0.1275878]
[1727078421888,0.3788,63591.0,63590.0,0.127588]
[1727078422218,0.3788,63591.0,63590.0,0.080632]
[1727078422901,0.3788,63591.0,63590.0,0.12758565]
[1727078424089,0.3788,63591.0,63590.0,0.080632]
[1727078424286,0.3788,63591.0,63590.0,0.12758565]
[1727078426887,0.3788,63591.0,63590.0,0.080632]
[1727078431416,0.018,63591.0,63590.0,0.080632]
[1727078431614,0.018,63591.0,63590.0,0.14327817]
[1727078431826,0.018,63591.0,63590.0,0.159264]
[1727078434727,0.018,63591.0,63590.0,0.1431989]
[1727078436124,0.018,63591.0,63590.0,0.12757738]
[1727078436833,0.018,63591.0,63590.0,0.080632]
[1727078437626,0.018,63591.0,63590.0,0.12756361]
[1727078437939,0.0135,63591.0,63590.0,0.12756361]
[1727078438114,0.0135,63591.0,63590.0,0.080632]
[1727078438320,0.0135,63591.0,63590.0,0.12756775]
[1727078439827,0.0135,63591.0,63590.0,0.12756199]
[1727078440221,0.0135,63591.0,63590.0,0.080632]
[1727078440620,0.0135,63591.0,63590.0,0.12756199]
[1727078440816,0.0135,63591.0,63590.0,0.080632]
[1727078441222,0.092131,63591.0,63590.0,0.080632]
[1727078442236,0.0135,63591.0,63590.0,0.080632]
[1727078442623,0.0135,63591.0,63590.0,0.12756199]
[1727078442828,0.0135,63591.0,63590.0,0.1431989]
[1727078443240,0.0135,63591.0,63590.0,0.080632]
[1727078445330,0.0135,63591.0,63590.0,0.15889657]
[1727078445925,0.0135,63591.0,63590.0,0.25130027]
[1727078448350,0.0135,63591.0,63590.0,0.25111604]
[1727078449538,0.0135,63591.0,63590.0,0.2699001]
[1727078449743,0.0135,63591.0,63590.0,0.17768063]
[1727078451035,0.0135,63591.0,63590.0,0.26989482]
[1727078451238,0.0135,63591.0,63590.0,0.17768063]
[1727078451624,0.0135,63591.0,63590.0,0.26990254]
[1727078452830,0.0135,63591.0,63590.0,0.25111848]
[1727078453245,0.0135,63591.0,63590.0,0.15889657]
[1727078454543,0.0135,63591.0,63590.0,0.25109671]
[1727078454744,0.0135,63591.0,63590.0,0.25109665]
[1727078459753,0.0135,63591.0,63590.0,0.17283208]
[1727078460246,0.0135,63591.0,63590.0,0.61195306]
[1727078460441,0.0135,63591.0,63590.0,0.53363208]
[1727078463444,0.0135,63591.0,63590.0,0.61226408]
[1727078463840,0.3608,63602.0,63601.0,0.078619]
[1727078464447,0.0461,63605.0,63604.0,0.078615]
[1727078464952,0.0461,63605.0,63604.0,0.12555955]
[1727078465347,0.0461,63605.0,63604.0,0.078615]
[1727078465735,0.0501,63605.0,63604.0,0.079615]
[1727078466654,0.0501,63605.0,63604.0,0.080615]
[1727078466841,0.0501,63605.0,63599.0,0.04694455]
[1727078466842,0.20732197,63605.0,63599.0,0.04694455]
[1727078467146,0.20732197,63605.0,63596.0,0.04694455]
[1727078467147,0.3608,63600.0,63596.0,0.04694455]
[1727078467356,0.0468,63599.0,63596.0,0.04694455]
[1727078467742,0.0468,63599.0,63593.0,0.06258936]
[1727078467743,0.0468,63599.0,63597.0,0.04694455]
[1727078467951,0.0468,63599.0,63598.0,0.078622]
[1727078468142,0.0468,63599.0,63596.0,0.04694455]
[1727078468353,0.078631,63591.0,63590.0,0.04694455]
[1727078468647,0.078633,63589.0,63587.0,0.078636]
[1727078468854,0.046,63588.0,63587.0,0.078636]
[1727078469049,0.0928,63588.0,63587.0,0.078636]
[1727078470249,0.07864,63584.0,63583.0,0.04694455]
[1727078470442,0.51944,63584.0,63582.0,0.04694455]
[1727078470942,0.43944,63584.0,63581.0,0.04694455]
[1727078471853,0.158641,63583.0,63582.0,0.001]
[1727078472039,0.519441,63583.0,63582.0,0.001]
[1727078472238,0.078647,63579.0,63577.0,0.08235919]
[1727078472444,0.078647,63579.0,63577.0,0.00235919]
[1727078472645,0.078647,63578.0,63577.0,0.00235919]
[1727078473145,0.3608,63583.0,63577.0,0.21100719]
[1727078473346,0.3608,63583.0,63581.0,0.13]
[1727078473554,0.078643,63582.0,63581.0,0.13]
[1727078475165,0.081643,63582.0,63581.0,0.13]
[1727078475448,0.003,63582.0,63577.0,0.00235919]
[1727078475847,0.078647,63578.0,63577.0,0.00235919]
[1727078477840,0.080647,63578.0,63577.0,0.00235919]
[1727078478552,0.081647,63578.0,63577.0,0.00235919]
[1727078479148,0.082647,63578.0,63577.0,0.00335919]
[1727078480256,0.082647,63578.0,63577.0,0.00435919]
[1727078480967,0.080647,63578.0,63577.0,0.00335919]
[1727078481255,0.082647,63578.0,63577.0,0.00435919]
[1727078482254,0.082647,63578.0,63577.0,0.08300719]
[1727078483869,0.004,63578.0,63577.0,0.08300719]
[1727078484459,0.078642,63582.0,63579.0,0.078645]
[1727078484764,0.078644,63581.0,63579.0,0.078645]
[1727078485466,0.078645,63580.0,63579.0,0.078645]
[1727078486470,0.3608,63583.0,63581.0,0.078642]
[1727078486656,0.078642,63582.0,63581.0,0.078642]
[1727078486856,0.080642,63582.0,63581.0,0.078642]
[1727078487270,0.078642,63582.0,63581.0,0.078642]
[1727078487953,0.080642,63582.0,63581.0,0.079642]
[1727078488467,0.082642,63582.0,63581.0,0.080642]
[1727078489264,0.082642,63582.0,63581.0,0.002]
[1727078493268,0.082642,63582.0,63581.0,0.080643]
[1727078494175,0.080642,63582.0,63581.0,0.079643]
[1727078494362,0.441442,63582.0,63581.0,0.079643]
[1727078494688,0.443442,63582.0,63581.0,0.080643]
[1727078494971,0.443442,63582.0,63581.0,0.001]
[1727078496369,0.078646,63580.0,63578.0,0.078646]
[1727078497057,0.078646,63579.0,63578.0,0.12559055]
[1727078497466,0.078646,63579.0,63578.0,0.078646]
[1727078497864,0.078646,63579.0,63578.0,0.12559055]
[1727078498065,0.078646,63579.0,63578.0,0.078646]
[1727078498575,0.080646,63579.0,63578.0,0.078646]
[1727078499561,0.078647,63578.0,63577.0,0.00235919]
[1727078500172,0.078647,63578.0,63577.0,0.04706461]
[1727078500173,0.208647,63578.0,63577.0,0.04706461]
[1727078500362,0.078648,63577.0,63576.0,0.04706461]
[1727078501059,0.15725597,63577.0,63576.0,0.04706461]
[1727078501474,0.02550279,63577.0,63574.0,0.04706461]
[1727078501767,0.078653,63573.0,63572.0,0.04708564]
[1727078502062,0.078658,63569.0,63568.0,0.04708564]
[1727078502263,0.078659,63568.0,63567.0,0.04708564]
[1727078502471,0.4916,63569.0,63566.0,0.04708564]
[1727078502671,0.4908,63569.0,63566.0,0.04708564]
[1727078503065,0.078661,63567.0,63565.0,0.04708564]
[1727078503265,0.078661,63567.0,63566.0,0.04708564]
[1727078503468,0.078661,63567.0,63566.0,0.078662]
[1727078503663,0.3608,63569.0,63567.0,0.078659]
[1727078503875,0.3608,63569.0,63568.0,0.12571051]
[1727078504073,0.3628,63569.0,63568.0,0.12571051]
[1727078505564,0.004,63569.0,63568.0,0.12571051]
[1727078506366,0.002,63569.0,63568.0,0.12571051]
[1727078506563,0.004,63569.0,63568.0,0.12571051]
[1727078507375,0.004,63569.0,63568.0,0.078659]
[1727078507880,0.004,63569.0,63568.0,0.12566624]
[1727078508072,0.078658,63570.0,63568.0,0.12566624]
[1727078508273,0.004,63569.0,63568.0,0.12566624]
[1727078508677,0.004,63569.0,63568.0,0.078659]
[1727078509978,0.082658,63569.0,63568.0,0.078659]
[1727078510778,0.004,63569.0,63568.0,0.078659]
[1727078511369,0.004,63569.0,63568.0,0.14124836]
[1727078511578,0.004,63569.0,63568.0,0.078659]
[1727078511978,0.004,63569.0,63568.0,0.550579]
[1727078512180,0.3608,63573.0,63572.0,0.078654]
[1727078512386,0.3608,63573.0,63572.0,0.27127294]
[1727078512681,0.3608,63573.0,63572.0,0.208654]
[1727078513180,0.078642,63582.0,63581.0,0.078643]
[1727078513385,0.3608,63585.0,63578.0,0.17695522]
[1727078513574,0.439439,63585.0,63582.0,0.078642]
[1727078514177,0.07864,63584.0,63582.0,0.078642]
[1727078514785,0.078641,63583.0,63582.0,0.079642]
[1727078515792,0.078641,63583.0,63582.0,0.002]
[1727078515996,0.078641,63583.0,63512.0,0.12395495]
[1727078515997,0.078641,63583.0,63575.0,0.04695522]
[1727078516182,0.3608,63576.0,63572.0,0.04695522]
[1727078516386,0.078657,63571.0,63568.0,0.12561322]
[1727078516583,0.13,63574.0,63569.0,0.078658]
[1727078516894,0.078657,63570.0,63569.0,0.078658]
[1727078517993,0.439457,63570.0,63569.0,0.078658]
[1727078518593,0.440457,63570.0,63569.0,0.078658]
[1727078518993,0.439457,63570.0,63569.0,0.078658]
[1727078519187,0.440457,63570.0,63569.0,0.078658]
[1727078519598,0.442457,63570.0,63569.0,0.078658]
[1727078520396,0.078661,63567.0,63566.0,0.12561522]
[1727078520788,0.4938,63570.0,63565.0,0.04698608]
[1727078520993,0.13,63567.0,63562.0,0.04698608]
[1727078521199,0.439466,63563.0,63562.0,0.04698608]
[1727078523412,0.439466,63563.0,63562.0,0.04898608]
[1727078523592,0.439466,63563.0,63562.0,0.05198608]
[1727078524306,0.439466,63563.0,63562.0,0.04998608]
[1727078524602,0.3608,63563.0,63562.0,0.081667]
[1727078525000,0.3608,63564.0,63562.0,0.081667]
[1727078525503,0.54084,63570.0,63563.0,0.04697193]
[1727078525705,0.54,63570.0,63564.0,0.04697193]
[1727078525899,0.54,63570.0,63563.0,0.04697193]
[1727078526101,0.3608,63564.0,63563.0,0.04697193]
[1727078526307,0.3608,63564.0,63563.0,0.12563793]
[1727078526510,0.078664,63565.0,63563.0,0.12563793]
[1727078526700,0.439464,63564.0,63563.0,0.12563793]
[1727078527701,0.439464,63564.0,63563.0,0.12663793]
[1727078528603,0.3608,63564.0,63563.0,0.12663793]
[1727078529403,0.07866,63568.0,63563.0,0.001]
[1727078529604,0.3608,63570.0,63567.0,0.04698613]
[1727078529807,0.078649,63577.0,63574.0,0.078651]
[1727078530108,0.078649,63577.0,63575.0,0.07865]
[1727078530404,0.36172,63578.0,63577.0,0.078648]
[1727078530405,0.3608,63578.0,63577.0,0.078648]
[1727078532501,0.3608,63578.0,63577.0,0.079648]
[1727078532502,0.3618,63578.0,63577.0,0.079648]
[1727078532702,0.440447,63578.0,63577.0,0.079648]
[1727078532907,0.570447,63578.0,63577.0,0.001]
[1727078533512,0.571447,63578.0,63577.0,0.002]
[1727078534918,1.643327,63578.0,63577.0,0.002]
[1727078535107,1.72185463,63578.0,63577.0,0.002]
[1727078535612,1.66883118,63578.0,63577.0,0.002]
[1727078535806,1.643327,63578.0,63577.0,0.002]
[1727078536009,1.66883118,63578.0,63577.0,0.002]
[1727078536211,1.06883118,63578.0,63577.0,0.002]
[1727078536620,1.66883118,63578.0,63577.0,0.002]
[1727078537217,1.14747818,63578.0,63577.0,0.002]
[1727078537408,0.078661,63567.0,63565.0,0.04696754]
[1727078537610,0.3608,63566.0,63562.0,0.12563977]
[1727078537807,0.3608,63566.0,63562.0,0.04697277]
[1727078537808,0.208666,63563.0,63562.0,0.04697277]
[1727078538022,0.208666,63563.0,63561.0,0.04933265]
[1727078538023,0.078667,63562.0,63561.0,0.04933265]
[1727078538213,0.078667,63562.0,63561.0,0.00235988]
[1727078539421,0.078667,63562.0,63561.0,0.004]
[1727078540517,0.078667,63562.0,63561.0,0.007]
[1727078540926,0.078667,63562.0,63561.0,0.006]
[1727078541110,0.078667,63562.0,63561.0,0.003]
[1727078541310,0.078667,63562.0,63561.0,0.005]
[1727078544712,0.157334,63562.0,63561.0,0.005]
[1727078544916,0.13,63563.0,63551.0,0.04697277]
[1727078544917,0.078679,63553.0,63551.0,0.04697277]
[1727078545112,0.078679,63553.0,63550.0,0.078681]
[1727078545113,0.3608,63552.0,63550.0,0.078681]
[1727078546015,0.3608,63552.0,63551.0,0.012]
[1727078546714,0.3608,63552.0,63550.0,0.092681]
[1727078546920,0.07868,63551.0,63550.0,0.014]
[1727078547521,0.078685,63547.0,63546.0,0.3268]
[1727078547722,0.196685,63547.0,63545.0,0.125887]
[1727078547940,0.3608,63546.0,63545.0,0.125887]
[1727078548240,0.078688,63545.0,63541.0,0.078693]
[1727078548532,0.116,63542.0,63539.0,0.00236073]
[1727078548737,0.078693,63541.0,63539.0,0.00236073]
[1727078549032,0.439494,63540.0,63539.0,0.00236073]
[1727078549331,0.415494,63540.0,63539.0,0.00236073]
[1727078550119,0.416494,63540.0,63539.0,0.01236073]
[1727078550320,0.546494,63540.0,63539.0,0.01236073]
[1727078551325,0.547494,63540.0,63539.0,0.01236073]
[1727078555925,0.547494,63540.0,63539.0,0.01]
[1727078557434,0.078702,63534.0,63529.0,0.078708]
[1727078557737,0.4908,63530.0,63529.0,0.078708]
[1727078557930,0.078708,63529.0,63523.0,0.1425]
[1727078559132,0.078709,63528.0,63525.0,0.078712]
[1727078559428,0.078713,63525.0,63523.0,0.1425]
[1727078559627,0.3608,63524.0,63523.0,0.1425]
[1727078559830,0.3608,63524.0,63521.0,0.078717]
[1727078559831,0.078715,63523.0,63521.0,0.078717]
[1727078560136,0.3608,63524.0,63518.0,0.078721]
[1727078560137,0.078718,63521.0,63518.0,0.078721]
[1727078560835,0.078719,63520.0,63518.0,0.078721]
[1727078561234,0.07872,63519.0,63515.0,0.0932]
[1727078561437,0.13,63516.0,63515.0,0.0932]
[1727078561937,0.3608,63518.0,63515.0,0.0932]
[1727078561938,0.439522,63518.0,63516.0,0.078723]
[1727078562138,0.439522,63518.0,63517.0,0.078723]
[1727078563049,0.3608,63518.0,63517.0,0.078723]
[1727078563839,0.3618,63518.0,63517.0,0.078723]
[1727078565137,0.3628,63518.0,63517.0,0.078723]
[1727078565336,0.3618,63518.0,63517.0,0.078723]
[1727078565540,0.3628,63518.0,63517.0,0.078723]
[1727078566840,0.3628,63518.0,63513.0,0.078726]
[1727078567138,0.078727,63513.0,63512.0,0.0486]
[1727078567942,0.07873,63512.0,63508.0,0.078734]
[1727078568136,0.4908,63509.0,63508.0,0.078734]
[1727078569234,0.4918,63509.0,63508.0,0.078734]
[1727078570936,0.4928,63509.0,63508.0,0.078734]
[1727078571333,0.571532,63509.0,63508.0,0.078734]
[1727078571534,0.571532,63509.0,63492.0,0.00124]
[1727078571535,0.4928,63509.0,63498.0,0.0953]
[1727078571735,0.078737,63506.0,63498.0,0.1415]
[1727078572147,0.3608,63499.0,63498.0,0.1415]
[1727078572330,0.078737,63506.0,63498.0,0.1415]
[1727078572734,0.078738,63505.0,63502.0,0.07874]
[1727078572952,0.13,63505.0,63502.0,0.07874]
[1727078573154,0.078739,63504.0,63498.0,0.1415]
[1727078574238,0.078739,63504.0,63503.0,0.07874]
[1727078574643,0.079739,63504.0,63503.0,0.07874]
[1727078574934,0.001,63504.0,63495.0,0.2736]
[1727078575241,0.3608,63499.0,63495.0,0.2736]
[1727078575441,0.078745,63500.0,63497.0,0.078747]
[1727078575643,0.13,63499.0,63495.0,0.1436]
[1727078575945,0.13,63499.0,63492.0,0.00236249]
[1727078575946,0.3608,63496.0,63492.0,0.00236249]
[1727078576446,0.43955,63496.0,63492.0,0.00236249]
[1727078576745,0.3608,63496.0,63492.0,0.00236249]
[1727078576948,0.3608,63496.0,63495.0,0.20875]
[1727078577946,0.3618,63496.0,63495.0,0.20875]
[1727078578341,0.3618,63496.0,63495.0,0.25560478]
[1727078578540,0.002,63496.0,63495.0,0.25560478]
[1727078578742,0.3645,63510.0,63509.0,0.078732]
[1727078579050,0.3608,63510.0,63509.0,0.078732]
[1727078579643,0.078733,63509.0,63503.0,0.0971]
[1727078579842,0.439539,63504.0,63503.0,0.0971]
[1727078580143,0.07874,63503.0,63501.0,0.078742]
[1727078580566,0.078741,63502.0,63501.0,0.078742]
[1727078580753,0.13,63502.0,63496.0,0.126848]
[1727078580948,0.3608,63498.0,63496.0,0.126848]
[1727078582039,0.13,63497.0,63496.0,0.078748]
[1727078582439,0.13,63497.0,63492.0,0.00236249]
[1727078582440,0.078749,63496.0,63492.0,0.08111449]
[1727078582741,0.13,63497.0,63489.0,0.046903]
[1727078582742,0.078756,63490.0,63489.0,0.046903]
[1727078582941,0.4908,63490.0,63482.0,0.078765]
[1727078583252,0.3608,63490.0,63484.0,0.078763]
[1727078583441,0.3608,63490.0,63481.0,0.046903]
[1727078583636,0.3608,63490.0,63489.0,0.078757]
[1727078584039,0.3608,63490.0,63489.0,0.208757]
[1727078584443,0.3608,63490.0,63489.0,0.078757]
[1727078584937,0.3628,63490.0,63489.0,0.078757]
[1727078585343,0.3628,63490.0,63483.0,0.046903]
[1727078585753,0.4928,63490.0,63484.0,0.078763]
[1727078587141,0.078759,63488.0,63484.0,0.078763]
[1727078588557,0.079759,63488.0,63484.0,0.078763]
[1727078588855,0.080759,63488.0,63484.0,0.078763]
[1727078589548,0.080759,63488.0,63485.0,0.208762]
[1727078589748,0.002,63488.0,63485.0,0.13]
[1727078589949,0.002,63488.0,63487.0,0.07876]
[1727078590555,0.001,63488.0,63487.0,0.07876]
[1727078590755,0.002,63488.0,63487.0,0.07876]
[1727078593447,0.001,63488.0,63487.0,0.07876]
[1727078593656,0.002,63488.0,63485.0,0.046903]
[1727078593858,0.002,63488.0,63484.0,0.046903]
[1727078594055,0.002,63488.0,63484.0,0.125666]
[1727078594256,0.002,63488.0,63485.0,0.046903]
[1727078595052,0.001,63488.0,63485.0,0.046903]
[1727078595357,0.002,63488.0,63486.0,0.046903]
[1727078595755,0.002,63488.0,63487.0,0.046903]
[1727078595966,0.002,63488.0,63487.0,0.07876]
[1727078597653,0.001,63488.0,63487.0,0.07876]
[1727078597852,0.3608,63490.0,63487.0,0.07876]
[1727078598068,0.3608,63490.0,63489.0,0.04701814]
[1727078598359,0.439556,63490.0,63487.0,0.07876]
[1727078598754,0.3608,63488.0,63487.0,0.07876]
[1727078599158,0.078761,63486.0,63484.0,0.06247304]
[1727078599358,0.078761,63486.0,63484.0,0.04703719]
[1727078600272,0.078761,63486.0,63484.0,0.078763]
[1727078600584,0.079761,63486.0,63484.0,0.078763]
[1727078601653,0.080761,63486.0,63484.0,0.078763]
[1727078601858,0.080761,63486.0,63484.0,0.12580019]
[1727078603559,0.13,63485.0,63483.0,0.04703719]
[1727078603755,0.078763,63484.0,63481.0,0.04703719]
[1727078604060,0.3608,63482.0,63481.0,0.078767]
[1727078605767,0.3608,63482.0,63481.0,0.12587184]
[1727078606170,0.3628,63482.0,63481.0,0.078767]
[1727078609273,0.3628,63482.0,63481.0,0.14124004]
[1727078610674,0.3628,63482.0,63480.0,0.06247304]
[1727078610871,0.078767,63481.0,63480.0,0.06247304]
[1727078611560,0.078767,63481.0,63479.0,0.078769]
[1727078612778,0.079767,63481.0,63479.0,0.078769]
[1727078612965,0.079767,63481.0,63480.0,0.078768]
[1727078613164,0.080767,63481.0,63480.0,0.078768]
[1727078614667,0.002,63481.0,63480.0,0.078768]
[1727078616870,0.002,63481.0,63480.0,0.208768]
[1727078617578,0.002,63481.0,63480.0,0.078768]
[1727078618973,0.002,63481.0,63480.0,0.25319233]
[1727078619175,0.002,63481.0,63480.0,0.17510103]
[1727078620579,0.002,63481.0,63480.0,0.078768]
[1727078627977,0.002,63481.0,63480.0,0.25387783]
[1727078628287,0.002,63481.0,63480.0,0.17524472]
[1727078628886,0.002,63481.0,63480.0,0.25400212]
[1727078629280,0.002,63481.0,63480.0,0.17524472]
[1727078630490,0.002,63481.0,63480.0,0.25402122]
[1727078633388,0.002,63481.0,63480.0,0.17524472]
[1727078634189,0.3628,63481.0,63480.0,0.17524472]
[1727078635597,0.3628,63481.0,63480.0,0.25403375]
[1727078636481,0.3628,63481.0,63480.0,0.17524472]
[1727078637199,0.07878234,63490.0,63480.0,1.29907672]
[1727078637385,0.3608,63495.0,63494.0,0.078751]
[1727078639290,0.56955,63495.0,63494.0,0.078751]
[1727078640091,0.57055,63495.0,63494.0,0.078751]
[1727078640901,0.4918,63495.0,63491.0,0.06291781]
[1727078641086,0.078754,63492.0,63491.0,0.06291781]
[1727078641289,0.078754,63492.0,63490.0,0.06291781]
[1727078641895,0.078756,63490.0,63489.0,0.06291781]
[1727078642090,0.078756,63490.0,63489.0,0.04716175]
[1727078642490,0.078756,63490.0,63488.0,0.04716175]
[1727078642696,0.3608,63489.0,63488.0,0.04716175]
[1727078642894,0.3608,63489.0,63487.0,0.07876]
[1727078643200,0.3608,63489.0,63488.0,0.078758]
[1727078643387,0.3608,63490.0,63489.0,0.078757]
[1727078643587,0.3608,63496.0,63495.0,0.07875]
[1727078643790,0.3608,63496.0,63495.0,0.12591237]
[1727078643993,0.3608,63496.0,63495.0,0.07875]
[1727078644599,0.3608,63496.0,63494.0,0.0471519]
[1727078644789,0.3608,63496.0,63492.0,0.078753]
[1727078644790,0.078751,63495.0,63492.0,0.1259049]
[1727078645189,0.078751,63495.0,63492.0,0.078753]
[1727078645699,0.078751,63495.0,63492.0,0.1259049]
[1727078646197,0.078751,63495.0,63492.0,0.078753]
[1727078647396,0.078751,63494.0,63492.0,0.078753]
[1727078647793,0.078754,63492.0,63491.0,0.0471519]
[1727078648103,0.078755,63491.0,63489.0,0.0471519]
[1727078648396,0.439556,63490.0,63488.0,0.1259099]
[1727078648892,0.208757,63489.0,63488.0,0.0471519]
[1727078649093,0.208757,63489.0,63485.0,0.06288316]
[1727078649094,0.078758,63488.0,63487.0,0.0471519]
[1727078649293,0.078758,63488.0,63487.0,0.1259119]
[1727078649494,0.078758,63488.0,63487.0,0.07876]
[1727078649692,0.078758,63488.0,63487.0,0.12591626]
[1727078650089,0.078758,63488.0,63487.0,0.07876]
[1727078650502,0.079758,63488.0,63487.0,0.07876]
[1727078651599,0.080758,63488.0,63487.0,0.07876]
[1727078654103,0.078761,63486.0,63482.0,0.04716802]
[1727078654308,0.4908,63483.0,63482.0,0.04716802]
[1727078654512,0.4908,63483.0,63480.0,0.04716802]
[1727078656301,0.078767,63481.0,63480.0,0.04716802]